bitfinex/quotes_SOLUSD_20250714
["timestamp","ask_amount","ask_price","bid_price","bid_amount"]
[1752460846643,0.06,164.22,164.21,33.02]
[1752460847040,0.06,164.22,164.21,37.81941985]
[1752460847542,0.06,164.22,164.21,33.02]
[1752460849650,0.06,164.22,164.21,37.81941985]
[1752460849830,0.06,164.22,164.21,33.74]
[1752460850035,0.06,164.22,164.21,38.53941985]
[1752460852139,0.06,164.22,164.21,37.81941985]
[1752460852339,0.06,164.22,164.21,38.53941985]
[1752460852949,0.78,164.22,164.19,26.26]
[1752460853142,0.78,164.22,164.2,33.0]
[1752460853377,0.06,164.22,164.2,37.79941985]
[1752460853829,0.06,164.22,164.2,38.51941985]
[1752460854030,0.06,164.22,164.21,22.30410382]
[1752460863063,0.06,164.22,164.21,17.50468397]
[1752460863375,0.06,164.22,164.21,55.28410382]
[1752460865565,0.06,164.22,164.21,144.88410382]
[1752460866782,0.06,164.22,164.21,144.91410382]
[1752460868051,0.06,164.29,164.25,16.78468397]
[1752460868262,0.06,164.29,164.28,4.79941985]
[1752460868462,0.06,164.29,164.28,37.75941985]
[1752460869959,0.06,164.29,164.28,32.96]
[1752460869960,0.76,164.29,164.28,32.96]
[1752460870270,16.78468397,164.25,164.21,0.03]
[1752460870448,4.79941985,164.22,164.21,0.03]
[1752460870643,4.79941985,164.22,164.21,32.99]
[1752460870873,0.7,164.22,164.21,32.99]
[1752460871278,5.49941985,164.22,164.21,32.99]
[1752460871583,0.7,164.22,164.21,32.99]
[1752460872965,0.7,164.24,164.21,37.78941985]
[1752460873247,7.9541,164.26,164.22,4.79941985]
[1752460873458,0.7,164.25,164.23,37.75941985]
[1752460873789,0.7,164.24,164.23,32.96]
[1752460874154,7.9541,164.26,164.23,32.96]
[1752460874353,7.9541,164.26,164.23,37.75941985]
[1752460874354,0.7,164.25,164.23,37.75941985]
[1752460874663,0.7,164.25,164.23,32.96]
[1752460875057,0.7,164.25,164.23,37.75941985]
[1752460875250,7.9541,164.26,164.23,37.75941985]
[1752460875462,0.7,164.25,164.23,37.75941985]
[1752460876271,0.7,164.25,164.23,32.96]
[1752460876465,0.7,164.24,164.23,32.96]
[1752460878284,5.49941985,164.24,164.23,32.96]
[1752460884979,10.2988397,164.24,164.21,0.03]
[1752460885284,4.79941985,164.22,164.21,0.03]
[1752460885666,5.49941985,164.22,164.21,0.03]
[1752460885983,0.7,164.22,164.21,0.03]
[1752460886192,5.49941985,164.22,164.21,32.97]
[1752460887493,7.06981985,164.22,164.18,0.03]
[1752460887695,4.79941985,164.19,164.18,0.03]
[1752460888088,5.49941985,164.19,164.18,0.03]
[1752460888781,5.49941985,164.19,164.18,32.97]
[1752460890388,0.7,164.19,164.18,32.97]
[1752460894696,2.2304,164.22,164.18,32.97]
[1752460894898,7.02981985,164.22,164.18,32.97]
[1752460895096,0.66,164.21,164.18,32.97]
[1752460895892,1.5704,164.22,164.18,38.48941985]
[1752460896300,0.66,164.21,164.18,32.97]
[1752460897479,5.45941985,164.2,164.18,32.97]
[1752460897666,0.66,164.2,164.18,32.97]
[1752460900592,7.02981985,164.22,164.18,33.69]
[1752460900792,7.02981985,164.22,164.18,38.48941985]
[1752460900987,2.2304,164.22,164.18,38.48941985]
[1752460901205,1.5704,164.22,164.19,0.72]
[1752460901503,5.45941985,164.24,164.2,5.51941985]
[1752460901676,0.66,164.23,164.21,32.92]
[1752460902193,0.06,164.25,164.21,32.92]
[1752460902194,5.45941985,164.22,164.21,32.92]
[1752460902413,5.45941985,164.22,164.18,0.03]
[1752460902705,16.84468397,164.25,164.21,32.92]
[1752460903204,0.66,164.24,164.21,32.92]
[1752460903698,4.79941985,164.22,164.21,32.92]
[1752460903902,0.66,164.22,164.21,32.92]
[1752460904108,5.45941985,164.24,164.21,32.92]
[1752460904281,0.06,164.25,164.21,32.92]
[1752460904282,5.45941985,164.23,164.21,32.92]
[1752460904806,0.06,164.25,164.22,0.72]
[1752460905307,0.06,164.25,164.21,37.71941985]
[1752460905501,0.06,164.25,164.21,38.43941985]
[1752460905685,0.72,164.25,164.21,38.43941985]
[1752460905998,0.72,164.25,164.21,33.64]
[1752460906301,0.72,164.25,164.21,38.43941985]
[1752460906483,0.06,164.25,164.22,0.72]
[1752460906892,0.06,164.25,164.23,0.72]
[1752460907094,0.06,164.25,164.24,32.92]
[1752460907494,0.06,164.25,164.24,37.71941985]
[1752460907800,0.06,164.25,164.24,38.43941985]
[1752460908205,0.06,164.25,164.24,32.92]
[1752460909009,0.72,164.25,164.24,32.92]
[1752460910099,0.06,164.25,164.24,32.92]
[1752460911883,0.06,164.25,164.24,38.43941985]
[1752460913498,0.06,164.25,164.24,37.71941985]
[1752460914009,0.06,164.25,164.24,38.43941985]
[1752460914798,0.06,164.25,164.24,37.71941985]
[1752460915205,0.06,164.25,164.24,32.92]
[1752460915387,0.06,164.25,164.24,37.71941985]
[1752460916007,0.06,164.25,164.24,32.92]
[1752460919790,0.06,164.25,164.24,37.71941985]
[1752460923688,0.06,164.25,164.24,33.59]
[1752460923909,0.06,164.25,164.24,32.92]
[1752460926715,0.76,164.25,164.24,32.92]
[1752460928591,0.06,164.25,164.24,32.92]
[1752460928896,0.06,164.25,164.24,37.71941985]
[1752460929288,0.06,164.25,164.24,38.38941985]
[1752460931093,0.06,164.25,164.23,4.79941985]
[1752460931293,0.06,164.25,164.24,32.84]
[1752460931722,0.06,164.25,164.24,37.63941985]
[1752460933627,0.06,164.25,164.24,32.84]
[1752460933923,0.06,164.25,164.24,37.63941985]
[1752460934907,0.06,164.25,164.24,38.30941985]
[1752460935317,0.06,164.25,164.24,33.51]
[1752460935515,0.06,164.25,164.24,38.30941985]
[1752460937806,0.06,164.25,164.24,38.28941985]
[1752460940541,0.06,164.25,164.24,33.49]
[1752460940713,0.06,164.25,164.24,38.28941985]
[1752460942838,0.06,164.25,164.24,37.61941985]
[1752460943320,0.76,164.25,164.22,26.26]
[1752460943521,0.76,164.25,164.24,4.79941985]
[1752460943733,0.06,164.25,164.24,4.79941985]
[1752460944848,0.06,164.25,164.23,37.61941985]
[1752460945037,0.76,164.25,164.23,37.61941985]
[1752460946135,0.06,164.25,164.23,37.61941985]
[1752460946341,0.06,164.25,164.24,4.79941985]
[1752460946838,0.06,164.25,164.24,5.46941985]
[1752460948513,0.06,164.25,164.24,0.67]
[1752460948714,0.06,164.25,164.24,5.46941985]
[1752460950343,0.06,164.25,164.24,10.2688397]
[1752460950545,0.06,164.25,164.24,27.05352367]
[1752460951746,0.06,164.25,164.24,116.65352367]
[1752460952338,0.06,164.25,164.24,95.06941985]
[1752460954652,0.06,164.25,164.24,99.8688397]
[1752460954818,0.06,164.25,164.24,95.06941985]
[1752460955017,0.06,164.25,164.24,94.39941985]
[1752460955225,0.06,164.25,164.24,95.10941985]
[1752460955447,0.06,164.25,164.24,111.89410382]
[1752460955750,0.06,164.25,164.24,116.69352367]
[1752460957245,0.06,164.25,164.24,27.09352367]
[1752460958537,0.06,164.25,164.24,64.26941985]
[1752460958737,0.06,164.25,164.24,85.85352367]
[1752460960737,0.06,164.25,164.24,81.05410382]
[1752460961126,0.06,164.25,164.24,30.79941985]
[1752460961329,0.06,164.25,164.24,63.55941985]
[1752460961643,0.06,164.25,164.24,64.26941985]
[1752460962348,0.06,164.25,164.24,85.85352367]
[1752460964827,0.06,164.29,164.24,93.02553578]
[1752460965032,0.06,164.29,164.28,4.79941985]
[1752460965230,0.06,164.29,164.28,37.53941985]
[1752460965559,0.06,164.29,164.28,38.24941985]
[1752460966354,0.06,164.29,164.28,55.03410382]
[1752460967965,0.06,164.29,164.28,50.23468397]
[1752460968138,0.06,164.29,164.28,55.03410382]
[1752460968661,0.06,164.29,164.28,37.51941985]
[1752460969456,0.06,164.29,164.28,32.72]
[1752460969652,0.06,164.29,164.28,37.51941985]
[1752460969862,0.06,164.29,164.28,38.22941985]
[1752460970158,0.06,164.29,164.28,37.51941985]
[1752460970565,0.06,164.29,164.28,38.22941985]
[1752460970872,0.06,164.29,164.28,37.51941985]
[1752460974180,0.06,164.29,164.28,38.22941985]
[1752460974345,0.06,164.29,164.28,33.43]
[1752460974542,0.06,164.29,164.28,38.22941985]
[1752460974773,0.06,164.29,164.28,55.01410382]
[1752460977861,0.06,164.29,164.28,144.61410382]
[1752460981772,0.06,164.29,164.28,143.90410382]
[1752460982472,0.06,164.29,164.28,144.62410382]
[1752460983169,0.06,164.29,164.28,139.82468397]
[1752460983371,0.06,164.29,164.28,144.62410382]
[1752460985174,0.06,164.29,164.28,144.56410382]
[1752460986972,0.06,164.29,164.28,142.83049972]
[1752460987179,0.06,164.32,164.31,42.78468397]
[1752460987380,0.36404897,164.34,164.31,90.77376272]
[1752460987592,0.36404897,164.34,164.33,19.85049972]
[1752460987751,0.36404897,164.34,164.33,52.51049972]
[1752460987950,0.36404897,164.34,164.33,53.23049972]
[1752460988147,0.36404897,164.34,164.33,20.57049972]
[1752460988375,0.68,164.4,164.35,42.78468397]
[1752460988571,0.68,164.39,164.35,78.51049972]
[1752460988972,0.68,164.37,164.35,30.78732996]
[1752460989164,0.74,164.36,164.35,30.78732996]
[1752460989360,0.74,164.36,164.35,63.44732996]
[1752460989560,0.74,164.36,164.35,32.66]
[1752460989561,2.3629,164.36,164.35,32.66]
[1752460993264,7.15022996,164.36,164.35,32.66]
[1752460994160,2.3629,164.36,164.35,32.66]
[1752460997984,1.6829,164.36,164.35,32.66]
[1752460998158,2.3629,164.36,164.35,32.66]
[1752460998361,2.3629,164.36,164.35,32.62]
[1752461000701,2.3629,164.36,164.35,37.40732996]
[1752461007900,2.3629,164.36,164.35,32.62]
[1752461008079,2.3629,164.36,164.35,37.40732996]
[1752461009902,0.06,164.36,164.35,37.40732996]
[1752461011776,0.06,164.36,164.35,32.62]
[1752461011978,0.76,164.36,164.35,37.40732996]
[1752461013580,0.76,164.36,164.35,32.62]
[1752461013791,0.76,164.36,164.35,37.40732996]
[1752461017595,0.06,164.36,164.35,38.11732996]
[1752461017776,0.06,164.36,164.35,37.40732996]
[1752461019001,0.76,164.36,164.35,32.62]
[1752461021819,5.54732996,164.36,164.35,32.62]
[1752461021982,13.75922996,164.36,164.35,32.62]
[1752461022483,13.75922996,164.36,164.34,0.03]
[1752461022684,5.48732996,164.35,164.34,0.03]
[1752461023514,5.48732996,164.35,164.34,32.59]
[1752461024087,0.7,164.35,164.34,32.59]
[1752461024294,5.48732996,164.35,164.34,32.59]
[1752461028105,5.48732996,164.35,164.33,26.24]
[1752461028296,5.48732996,164.34,164.33,26.24]
[1752461029301,5.48732996,164.34,164.33,58.8]
[1752461040518,0.7,164.34,164.33,58.8]
[1752461040721,5.48732996,164.34,164.33,58.8]
[1752461043506,0.7,164.34,164.33,58.8]
[1752461043715,5.48732996,164.34,164.33,58.8]
[1752461045825,16.78468397,164.31,164.26,0.03]
[1752461046000,4.78732996,164.27,164.26,0.03]
[1752461046327,4.78732996,164.27,164.26,32.55]
[1752461046511,5.44732996,164.27,164.26,32.55]
[1752461047420,6.97622996,164.27,164.26,0.03]
[1752461047633,6.97622996,164.27,164.26,32.55]
[1752461047634,23.76091393,164.27,164.26,32.55]
[1752461049612,0.66,164.29,164.26,32.55]
[1752461049819,4.78732996,164.3,164.27,0.72]
[1752461050004,5.44732996,164.3,164.28,32.5]
[1752461050205,5.44732996,164.3,164.29,32.5]
[1752461050819,5.44732996,164.3,164.26,0.03]
[1752461051022,4.78732996,164.3,164.27,33.22]
[1752461051734,5.44732996,164.3,164.27,33.22]
[1752461052034,1.6004,164.31,164.28,0.72]
[1752461052208,1.6004,164.31,164.29,32.5]
[1752461052209,6.51108725,164.31,164.29,32.5]
[1752461052403,11.29841721,164.31,164.29,32.5]
[1752461052631,6.51108725,164.31,164.29,32.5]
[1752461052934,11.29841721,164.31,164.29,32.5]
[1752461053141,4.78732996,164.3,164.29,32.5]
[1752461053318,5.44732996,164.3,164.29,32.5]
[1752461055949,1.6004,164.31,164.29,32.5]
[1752461056228,5.44732996,164.33,164.29,33.22]
[1752461056415,4.78732996,164.32,164.29,33.22]
[1752461056619,5.44732996,164.32,164.29,33.22]
[1752461057217,0.66,164.32,164.29,32.5]
[1752461057420,0.66,164.31,164.29,32.5]
[1752461057731,5.44732996,164.31,164.29,32.5]
[1752461058338,4.78732996,164.31,164.29,32.5]
[1752461058514,4.78732996,164.32,164.29,32.5]
[1752461058714,4.78732996,164.32,164.29,33.22]
[1752461059935,4.78732996,164.33,164.3,0.72]
[1752461060237,5.4148861,164.34,164.31,32.48]
[1752461060433,5.44732996,164.34,164.31,32.48]
[1752461060633,18.34088397,164.35,164.31,32.48]
[1752461060634,5.44732996,164.33,164.31,32.48]
[1752461060838,0.66,164.32,164.31,32.48]
[1752461062035,4.81992072,164.34,164.31,33.2]
[1752461062342,5.44732996,164.34,164.31,32.48]
[1752461062843,4.78732996,164.34,164.31,33.2]
[1752461063424,9.65452869,164.34,164.31,33.2]
[1752461063741,4.78732996,164.34,164.31,33.2]
[1752461063940,4.84732996,164.34,164.31,33.2]
[1752461064241,0.06,164.34,164.31,32.48]
[1752461064417,0.06,164.34,164.32,0.72]
[1752461064618,0.06,164.34,164.33,32.46]
[1752461064840,0.06,164.34,164.33,33.18]
[1752461065436,0.06,164.34,164.33,32.46]
[1752461065437,4.8532063,164.34,164.33,32.46]
[1752461065622,0.06,164.34,164.33,32.46]
[1752461066343,5.50732996,164.34,164.33,32.46]
[1752461067218,0.72,164.34,164.33,32.46]
[1752461067439,10.32617732,164.34,164.33,32.46]
[1752461067746,5.50732996,164.34,164.33,32.46]
[1752461068642,0.72,164.34,164.33,32.46]
[1752461068840,5.50732996,164.34,164.33,32.46]
[1752461069744,0.06,164.34,164.33,33.18]
[1752461071020,5.55732996,164.34,164.33,32.46]
[1752461072947,0.77,164.34,164.33,32.46]
[1752461073251,5.55732996,164.34,164.33,32.46]
[1752461074658,16.78468397,164.33,164.29,26.27]
[1752461074824,4.78732996,164.31,164.3,32.44]
[1752461075146,5.49732996,164.32,164.3,32.44]
[1752461076854,4.78732996,164.32,164.3,32.44]
[1752461077432,1.6272,164.34,164.31,5.45732996]
[1752461077756,0.06,164.34,164.32,0.67]
[1752461078048,0.06,164.34,164.33,33.09]
[1752461079531,0.06,164.34,164.33,32.42]
[1752461080227,0.06,164.34,164.33,33.09]
[1752461080454,0.06,164.34,164.33,37.87732996]
[1752461082655,0.06,164.34,164.33,32.42]
[1752461083579,0.06,164.34,164.33,37.87732996]
[1752461084840,0.06,164.34,164.33,33.09]
[1752461086103,0.06,164.34,164.33,37.87732996]
[1752461086947,0.06,164.34,164.33,37.90732996]
[1752461087537,0.06,164.34,164.33,33.12]
[1752461087738,0.06,164.34,164.33,32.45]
[1752461097163,0.06,164.34,164.33,33.12]
[1752461097694,0.06,164.34,164.33,37.90732996]
[1752461098280,0.06,164.34,164.33,33.12]
[1752461098479,0.06,164.34,164.33,37.90732996]
[1752461100786,0.06,164.34,164.33,32.45]
[1752461104484,0.06,164.34,164.33,33.14]
[1752461104662,0.06,164.34,164.33,37.92732996]
[1752461105586,0.06,164.36,164.33,54.71201393]
[1752461105795,0.06,164.36,164.35,4.78732996]
[1752461105996,0.06,164.41,164.4,9.57465992]
[1752461106173,0.06,164.41,164.4,41.91465992]
[1752461106485,1.5757,164.48,164.4,42.60465992]
[1752461106685,0.66,164.51,164.47,4.78732996]
[1752461106889,0.66,164.5,164.48,37.12732996]
[1752461107063,2.1677,164.52,164.49,37.12732996]
[1752461107270,2.1677,164.52,164.5,4.78732996]
[1752461107271,1.5077,164.52,164.5,4.78732996]
[1752461107579,1.5077,164.52,164.49,33.03]
[1752461107580,2.1677,164.52,164.51,32.34]
[1752461108093,0.66,164.54,164.51,37.12732996]
[1752461109175,2.2295,164.56,164.52,4.78732996]
[1752461109389,0.66,164.55,164.53,32.32]
[1752461109782,0.72,164.54,164.53,32.32]
[1752461110693,0.06,164.54,164.53,32.32]
[1752461111397,0.72,164.54,164.53,32.32]
[1752461111892,0.06,164.54,164.53,32.32]
[1752461114584,4.84732996,164.54,164.53,32.32]
[1752461117392,5.50732996,164.54,164.53,32.28]
[1752461118088,5.50732996,164.54,164.47,26.93]
[1752461118089,22.29201393,164.54,164.47,26.93]
[1752461118293,4.78732996,164.51,164.48,32.28]
[1752461118625,4.78732996,164.51,164.48,32.97]
[1752461118975,5.44732996,164.52,164.48,32.97]
[1752461119178,0.72,164.54,164.49,0.69]
[1752461119369,0.72,164.54,164.5,0.69]
[1752461119576,4.84732996,164.54,164.51,32.95]
[1752461119986,0.06,164.54,164.51,32.95]
[1752461120187,4.84732996,164.54,164.51,32.95]
[1752461120823,4.78732996,164.52,164.48,0.69]
[1752461120982,4.78732996,164.51,164.49,32.26]
[1752461121181,4.78732996,164.52,164.49,32.95]
[1752461121418,4.78732996,164.52,164.49,32.26]
[1752461121600,4.78732996,164.52,164.5,0.69]
[1752461122908,0.06,164.54,164.49,32.26]
[1752461123119,4.78732996,164.53,164.49,32.26]
[1752461123420,4.78732996,164.53,164.5,0.69]
[1752461123720,4.78732996,164.53,164.51,0.69]
[1752461123906,4.78732996,164.53,164.52,32.26]
[1752461124516,5.44732996,164.53,164.52,32.26]
[1752461124915,0.06,164.54,164.52,32.26]
[1752461125104,4.78732996,164.53,164.52,32.26]
[1752461127626,0.06,164.54,164.52,32.95]
[1752461128819,0.06,164.54,164.53,0.69]
[1752461130706,0.06,164.54,164.53,5.47732996]
[1752461131418,0.06,164.54,164.53,0.69]
[1752461131796,0.06,164.54,164.53,5.47732996]
[1752461132438,0.06,164.54,164.53,0.69]
[1752461132756,0.06,164.54,164.53,37.69732996]
[1752461135935,0.06,164.54,164.53,32.91]
[1752461136136,0.06,164.54,164.53,37.69732996]
[1752461136305,0.06,164.54,164.53,38.19732996]
[1752461137426,0.06,164.54,164.53,5.97732996]
[1752461137640,0.06,164.54,164.53,38.17732996]
[1752461139036,0.06,164.54,164.53,5.97732996]
[1752461139333,0.06,164.54,164.53,64.37732996]
[1752461139532,0.06,164.54,164.53,59.59]
[1752461139727,0.06,164.54,164.53,64.37732996]
[1752461141416,0.06,164.54,164.53,81.16201393]
[1752461142417,0.06,164.54,164.53,76.37468397]
[1752461142624,0.06,164.54,164.53,81.16201393]
[1752461146716,0.06,164.54,164.53,76.37468397]
[1752461146912,0.06,164.54,164.53,81.16201393]
[1752461147333,0.06,164.54,164.53,48.96201393]
[1752461147533,0.06,164.54,164.53,81.12201393]
[1752461154044,0.06,164.54,164.53,58.84]
[1752461154251,0.06,164.54,164.53,59.51]
[1752461155029,0.06,164.54,164.53,64.29732996]
[1752461156041,0.06,164.54,164.53,63.79732996]
[1752461156848,0.06,164.54,164.53,59.01]
[1752461157148,0.06,164.54,164.53,63.79732996]
[1752461157351,0.06,164.54,164.53,80.58201393]
[1752461158153,0.06,164.54,164.53,48.44201393]
[1752461158450,0.06,164.54,164.53,80.58201393]
[1752461159436,0.06,164.54,164.53,63.79732996]
[1752461160049,0.06,164.54,164.53,80.58201393]
[1752461160433,0.06,164.54,164.53,75.79468397]
[1752461160651,0.06,164.54,164.53,80.58201393]
[1752461161029,0.06,164.54,164.53,98.79201393]
[1752461161431,0.06,164.54,164.53,76.29468397]
[1752461161649,0.06,164.54,164.53,81.08201393]
[1752461162058,0.06,164.54,164.53,76.29468397]
[1752461162233,0.06,164.54,164.53,81.08201393]
[1752461163039,0.06,164.54,164.53,170.68201393]
[1752461163362,0.06,164.54,164.53,188.89201393]
[1752461172875,0.06,164.54,164.53,193.67934389]
[1752461175550,0.06,164.54,164.53,196.06408488]
[1752461175754,0.06,164.61,164.53,200.85141484]
[1752461175967,0.06,164.61,164.6,4.78732996]
[1752461176268,0.06,164.61,164.6,36.86732996]
[1752461176565,0.06,164.61,164.6,37.52732996]
[1752461176865,0.06,164.61,164.6,72.52201393]
[1752461177065,0.06,164.61,164.6,157.33468397]
[1752461177248,0.06,164.61,164.6,162.12201393]
[1752461177449,6.1872,164.7,164.64,18.21]
[1752461177450,19.73152351,164.69,164.64,18.21]
[1752461177664,19.03152351,164.69,164.67,4.78732996]
[1752461177878,19.03152351,164.69,164.68,37.50732996]
[1752461178176,19.03152351,164.69,164.68,35.65468397]
[1752461178475,19.03152351,164.69,164.68,54.29201393]
[1752461178686,0.1,164.71,164.7,26.0]
[1752461178842,0.1,164.71,164.7,30.78732996]
[1752461179047,1.77574,164.74,164.73,34.99468397]
[1752461179380,4.77701625,164.84,164.82,18.21]
[1752461179673,16.57018102,164.88,164.83,32.06]
[1752461179877,11.08285106,164.88,164.84,32.06]
[1752461180082,11.08285106,164.88,164.85,32.06]
[1752461180293,11.08285106,164.88,164.81,26.0]
[1752461180457,11.08285106,164.88,164.87,4.78732996]
[1752461180662,11.08285106,164.88,164.87,9.57465992]
[1752461180879,11.08285106,164.88,164.87,41.63465992]
[1752461181079,1.0,165.0,164.9,26.0]
[1752461181377,1.0,165.0,164.91,44.39]
[1752461181378,1.7,165.0,164.91,44.39]
[1752461181585,1.7,165.0,164.91,58.22]
[1752461181891,1.0,165.0,164.91,58.22]
[1752461182184,1.0,165.0,164.91,26.18]
[1752461182488,4.78732996,164.96,164.92,32.04]
[1752461182663,4.78732996,164.93,164.86,10.0]
[1752461182988,6.2571,164.98,164.77,26.16]
[1752461182989,4.78732996,164.87,164.77,26.16]
[1752461183162,4.78732996,164.88,164.77,26.16]
[1752461183163,4.78732996,164.79,164.77,26.16]
[1752461183469,7.8493,164.86,164.77,26.16]
[1752461183665,4.78732996,164.8,164.77,26.16]
[1752461183866,7.8493,164.86,164.78,32.02]
[1752461183867,4.78732996,164.79,164.78,32.02]
[1752461184085,5.48732996,164.79,164.78,32.02]
[1752461184281,0.7,164.79,164.78,32.02]
[1752461184688,5.48732996,164.79,164.78,32.02]
[1752461185062,8.64621238,164.79,164.78,32.02]
[1752461185375,8.64621238,164.79,164.77,26.16]
[1752461185692,8.64621238,164.78,164.77,26.16]
[1752461186058,8.64621238,164.78,164.7,26.16]
[1752461186259,0.7,164.77,164.7,26.16]
[1752461186760,7.94621238,164.73,164.71,32.02]
[1752461186961,0.7,164.73,164.71,32.02]
[1752461188399,7.94621238,164.74,164.71,32.02]
[1752461188600,0.7,164.72,164.71,32.02]
[1752461189378,7.94621238,164.74,164.71,32.02]
[1752461189379,0.7,164.76,164.71,32.02]
[1752461189582,0.7,164.76,164.73,7.94621238]
[1752461189795,0.7,164.81,164.75,7.94621238]
[1752461190003,8.64621238,164.85,164.8,7.94621238]
[1752461190207,0.7,164.89,164.84,7.94621238]
[1752461190382,0.7,164.89,164.86,7.94621238]
[1752461190577,7.94621238,164.87,164.85,32.02]
[1752461190786,8.64621238,164.86,164.71,7.98358441]
[1752461191103,7.94621238,164.79,164.74,7.94621238]
[1752461191282,0.69,164.78,164.74,7.94621238]
[1752461191486,0.69,164.78,164.76,0.5]
[1752461191687,0.69,164.78,164.77,32.02]
[1752461192293,14.11049871,164.9,164.77,39.96621238]
[1752461192294,0.69,164.81,164.77,39.96621238]
[1752461192517,0.69,164.81,164.8,7.94621238]
[1752461192697,8.04621238,164.9,164.8,7.94621238]
[1752461192698,0.69,164.83,164.8,39.94621238]
[1752461192884,7.94621238,164.85,164.8,39.94621238]
[1752461193219,18.04621238,164.9,164.8,39.94621238]
[1752461193220,0.1,164.9,164.81,7.94621238]
[1752461193385,0.69,164.85,164.83,7.94621238]
[1752461193585,0.1,164.9,164.84,39.94621238]
[1752461193586,0.69,164.88,164.84,39.94621238]
[1752461193811,0.1,164.9,164.84,32.0]
[1752461193980,0.69,164.89,164.88,7.94621238]
[1752461194183,0.1,164.9,164.88,66.10621238]
[1752461194524,0.1,164.9,164.89,7.94621238]
[1752461195017,0.1,164.9,164.89,12.14373328]
[1752461196797,0.1,164.9,164.89,28.92841725]
[1752461197807,0.1,164.9,164.89,12.14373328]
[1752461198383,0.79,164.9,164.88,26.16]
[1752461198590,0.79,164.9,164.89,32.0]
[1752461200288,12.93373328,164.9,164.89,32.0]
[1752461200821,0.79,164.9,164.89,32.0]
[1752461201312,0.1,164.9,164.89,44.14373328]
[1752461201517,0.1,164.9,164.89,44.64373328]
[1752461202814,0.1,164.9,164.89,32.5]
[1752461203012,12.93373328,164.9,164.89,32.48]
[1752461203201,0.79,164.9,164.89,31.98]
[1752461205200,0.1,164.9,164.89,44.12373328]
[1752461205403,0.1,164.9,164.89,31.98]
[1752461206696,0.79,164.9,164.89,31.98]
[1752461207109,12.93373328,164.9,164.89,32.48]
[1752461207492,0.79,164.9,164.89,32.48]
[1752461207693,12.93373328,164.9,164.89,32.48]
[1752461207922,0.79,164.9,164.89,32.48]
[1752461208107,12.93373328,164.9,164.89,32.48]
[1752461208306,0.79,164.9,164.89,32.48]
[1752461208517,12.93373328,164.9,164.89,32.48]
[1752461208903,0.79,164.9,164.89,31.98]
[1752461209114,0.1,164.9,164.89,31.98]
[1752461209304,0.1,164.9,164.89,44.12373328]
[1752461209620,0.1,164.9,164.89,31.98]
[1752461209800,0.79,164.9,164.89,31.98]
[1752461210427,0.1,164.9,164.89,31.98]
[1752461211698,0.1,164.9,164.89,44.12373328]
[1752461212304,0.1,164.9,164.89,44.62373328]
[1752461214609,0.1,164.9,164.89,61.40841725]
[1752461215120,0.1,164.9,164.89,57.19088872]
[1752461215525,1.0,165.0,164.93,18.21]
[1752461215703,1.69,165.0,164.96,7.92620475]
[1752461216025,1.69,165.0,164.97,31.96]